Cogmind - Beta 13 @@@ ROGUE MODE // 2024.06.23 @ 07:22:51 Player: puppuppit Result: Destroyed by Y-45 Defender with Beam Rifle Performance ------------- Evolutions (0) 0 Regions Visited (2) 400 Robots Destroyed (39) 195 Value Destroyed (591) 591 Prototype IDs (3) 60 Alien Tech Used (0) 0 Bonus (0) 0 TOTAL SCORE: 1246 Bonus ------- None Cogmind --------- Core Integrity 0/250 Matter 224/300 Energy 250/250 System Corruption 0% Temperature Cool (69) Movement Rolling (95) Ox1 Location -10/Mines Parts ------- > --- POWER (1) -------- Ion Engine > --- PROPULSION (2) --- Wheel > --- UTILITY (2) ------ Small Storage Unit Improved Terrain Scanner > --- WEAPON (2) ------- Small Laser Grenade Launcher > --- INVENTORY (8) ---- Wheel Wheel Hover Unit Hover Unit Heat Sink Small Matter Pod (50) Propulsion Shielding Peak State ------------ > --- POWER ------------ Ion Engine > --- PROPULSION ------- Wheel Wheel > --- UTILITY ---------- Small Storage Unit Improved Terrain Scanner > --- WEAPON ----------- Small Laser Grenade Launcher > --- INVENTORY -------- Wheel Wheel Hover Unit Hover Unit Heat Sink Small Matter Pod Propulsion Shielding Medium Laser [Rating: 9] Favorites ----------- Power Light Ion Engine Engine Light Ion Engine Propulsion Wheel Wheel Wheel Utility Small Storage Unit Device Heat Sink Storage Small Storage Unit Protection Propulsion Shielding Weapon Assault Rifle Energy Gun EM Pulse Gun Ballistic Gun Assault Rifle Launcher Grenade Launcher Build | -11 -10 -10 ------- Run | Yrd Mat Min Slots Evolved . | . . . Power . | . . . Propulsion . | . . . Utility . | . . . Weapon . | . . . Parts Attached 25 | 10 14 1 Power 2 | 1 1 . Engine 2 | 1 1 . Core . | . . . Reactor . | . . . Propulsion 10 | 5 5 . Treads . | . . . Leg . | . . . Wheel 10 | 5 5 . Hover . | . . . Flight . | . . . Utility 4 | 1 3 . Device 2 | . 2 . Storage 1 | 1 . . Processor . | . . . Hackware . | . . . Protection 1 | . 1 . Artifact . | . . . Weapon 9 | 3 5 1 Energy Gun 6 | 2 3 1 Energy Cannon . | . . . Ballistic Gun 2 | 1 1 . Ballistic Cannon . | . . . Launcher 1 | . 1 . Special Weapon . | . . . Impact Weapon . | . . . Slashing Weapon . | . . . Piercing Weapon . | . . . Special Melee Weapon . | . . . Unidentified Prototypes . | . . . Parts Lost 8 | . 6 2 Power 1 | . 1 . Propulsion 3 | . 2 1 Utility . | . . . Weapon 4 | . 3 1 Highest Loss Streak 6 | . 6 2 To Critical Strikes . | . . . Average Slot Usage (%) 88 | . 88 92 Engine 10 | . 10 14 Wheel 26 | . 26 21 Device 6 | . 5 14 Storage 14 | . 14 14 Protection 5 | . 5 . Energy Gun 14 | . 14 14 Ballistic Gun 7 | . 7 . Launcher 3 | . 3 14 Naked Turns . | . . . Heaviest Build 16 | 12 16 16 Greatest Support 26 | 26 20 20 Greatest Overweight (x) 2 | . 2 . Average Overweight (x) . | . . . Largest Inventory Capacity 8 | 8 8 8 Average Capacity 7 | 7 8 8 Most Carried 8 | 6 8 8 Average Carried 6 | 2 7 7 Final Capacity 8 | 8 8 8 Final Carried 8 | 6 8 7 Class Distribution -------------------- 74% | Mutant 25% | Scavenger-Mutant Dominant Class ---------------- Mutant | -10/Materials Scavenger-Mutant | -10/Mines Resources | -11 -10 -10 ----------- Run | Yrd Mat Min Matter Collected 663 | 345 318 . Remotely . | . . . Salvage Created 1087 | 237 790 60 Parts 81 | 11 65 5 Haulers Intercepted 2 | . 2 . Recyclers Shooed . | . . . Parts Field Recycled . | . . . Retrieved Matter . | . . . Parts Self-Destructed . | . . . Prevented . | . . . Kills | -11 -10 -10 ------- Run | Yrd Mat Min Combat Hostiles Destroyed 14 | . 13 1 Guns 9 | . 8 1 AOE 4 | . 4 . Classes Destroyed 10 | 3 6 1 Worker 7 | 2 5 . Builder 3 | . 3 . Tunneler 7 | 5 2 . Hauler 2 | . 2 . Recycler 1 | 1 . . Operator 2 | . 2 . Watcher 3 | . 3 . Swarmer 5 | . 5 . Grunt 8 | . 8 . Sentry 1 | . . 1 Best Kill Streak 8 | 8 6 1 Combat Bots Only 4 | . 4 1 Max Kills in Single Turn 2 | 2 2 1 Gunslinging . | . . . Exploded 2 | . 2 . Melee . | . . . Uniques/NPCs Destroyed . | . . . Combat | -11 -10 -10 -------- Run | Yrd Mat Min Hostile Shots Fired 93 | . 82 11 Missed 26 | . 21 5 Damage Taken 886 | . 765 121 Core 252 | . 238 14 Absorbed by Shields . | . . . Redirected to Shielding 36 | . 36 . Core Remaining (%) 100 | 100 . . Volleys Fired 96 | 15 78 3 Largest 2 | 2 2 2 Hottest 80 | 60 80 80 Shots Fired 173 | 30 137 6 Gun 162 | 30 129 3 Cannon . | . . . Launcher 11 | . 8 3 Special . | . . . Kinetic 69 | 15 54 . Thermal 38 | . 35 3 Explosive 11 | . 8 3 Electromagnetic 55 | 15 40 . Robot Hit Streak 10 | 6 10 2 Robot Miss Streak 6 | 2 6 1 Penetration Max . | . . . Secondary Targets 1 | . 1 . Max Gunslinging Chain 1 | . 1 . Shots Hit Robots 104 | 18 83 3 Core Hits 55 | 9 41 5 Critical Kills . | . . . Critical Parts Destroyed . | . . . Critical Strikes 1 | . 1 . Burn 1 | . 1 . Melee Attacks . | . . . Impact . | . . . Slashing . | . . . Piercing . | . . . Sneak Attacks . | . . . Combat Hostiles . | . . . Follow-up Attacks . | . . . Damage Inflicted 1784 | 297 1425 62 Guns 1260 | 225 1012 23 Cannons . | . . . Explosions 524 | 72 413 39 Melee . | . . . Ramming . | . . . Kinetic 488 | 101 387 . Thermal 377 | 72 282 23 Explosive 395 | . 356 39 Electromagnetic 524 | 124 400 . Impact . | . . . Slashing . | . . . Piercing . | . . . Highest Corruption . | . . . Average Corruption . | . . . Corruption Purged . | . . . Corruption Blocked . | . . . Overload Shots . | . . . Overflow Damage 4 | . 2 2 Projectiles . | . . . Explosions 4 | . 2 2 Melee . | . . . Knockbacks . | . . . Impact . | . . . Kinetic . | . . . Secondary . | . . . Self-Inflicted Damage 54 | . 20 34 Shots 2 | . 1 1 Rammed . | . . . Targets Rammed . | . . . Kicked . | . . . Crushed . | . . . Highest Temperature 183 | . 183 60 Average Temperature 68 | . 70 46 Received Heat Transfer 432 | . 396 36 Siege Activations . | . . . Robots Corrupted . | . . . Combat Hostiles . | . . . Parts Fried . | . . . Impact Corruptions . | . . . Robots Melted 1 | . 1 . Combat Hostiles 1 | . 1 . Parts Melted 1 | 1 . . Heat Transferred 952 | 50 840 62 Parts Sabotaged . | . . . Parts Stolen . | . . . Parts Stripped . | . . . Power Chain Reactions 3 | 1 2 . Alert | -11 -10 -10 ------- Run | Yrd Mat Min Peak Influence 376 | 40 376 177 Initial 145 | . 26 145 Average 224 | 14 265 152 Maximum Alert Level 1 | . 1 . Low Security (%) 44 | 100 32 100 Level 1 55 | . 67 . Level 2 . | . . . Level 3 . | . . . Level 4 . | . . . Level 5 . | . . . High Security . | . . . Max Security . | . . . Squads Dispatched 3 | . 3 . Investigation 2 | . 2 . Extermination . | . . . Reinforcement 1 | . 1 . Assault . | . . . Garrison . | . . . Intercept . | . . . Searches Triggered . | . . . Construction Impeded . | . . . Haulers Reinforced . | . . . Active Scanning Responses . | . . . Cargo Convoy Interrupts . | . . . Stealth | -11 -10 -10 --------- Run | Yrd Mat Min Distress Signals . | . . . Communications Jammed . | . . . Distress Signals . | . . . Times Spotted 25 | . 23 2 Peak Tracking Total 5 | . 5 2 Tactical Retreats . | . . . Traps | -11 -10 -10 ------- Run | Yrd Mat Min Traps Triggered . | . . . Indirectly . | . . . Trap Hack Attempts . | . . . Triggered . | . . . Disarmed . | . . . Reprogrammed 1 | . 1 . Reused . | . . . Traps Extracted . | . . . Installed . | . . . Triggered . | . . . Machines | -11 -10 -10 ---------- Run | Yrd Mat Min Machines Disabled 7 | . 5 2 Max in Single Turn 2 | . 1 2 Machines Repaired . | . . . Machines Dismantled . | . . . Machines Sabotaged . | . . . Overloaded Fab Kills . | . . . Hacking | -11 -10 -10 --------- Run | Yrd Mat Min Machines Accessed 6 | . 6 . Terminals 6 | . 6 . Fabricators . | . . . Repair Stations . | . . . Recycling Units . | . . . Scanalyzers . | . . . Garrison Access . | . . . Total Hacks 24 | . 24 . Successful 10 | . 10 . Failed 13 | . 13 . Catastrophic 2 | . 2 . Database Lockouts 1 | . 1 . Manual 11 | . 11 . Terminals 24 | . 24 . Fabricators . | . . . Repair Stations . | . . . Recycling Units . | . . . Scanalyzers . | . . . Garrison Access . | . . . Terminal Hacks 10 | . 10 . Robot Analysis 1 | . 1 . Prototype ID Bank 2 | . 2 . Branch Access Points 1 | . 1 . Terminal Index 1 | . 1 . Locate Traps 1 | . 1 . Reprogram Traps 1 | . 1 . Investigation Status 1 | . 1 . Registered Components 1 | . 1 . Zone Layout 1 | . 1 . Fabricator Hacks . | . . . Repair Station Hacks . | . . . Recycling Unit Hacks . | . . . Scanalyzer . | . . . Garrison Access Hacks . | . . . Unauthorized Hacks . | . . . Terminals . | . . . Fabricators . | . . . Repair Stations . | . . . Recycling Units . | . . . Scanalyzers . | . . . Garrison Access . | . . . Data Cores Recovered . | . . . Used . | . . . Hacking Detections 6 | . 6 . Full Trace Events 4 | . 4 . Feedback Events . | . . . Feedback Blocked . | . . . Robot Schematics Acquired . | . . . Robots Built . | . . . Authchips . | . . . Time . | . . . Total Robot Build Rating . | . . . Part Schematics Acquired . | . . . Parts Built . | . . . Authchips . | . . . Time . | . . . Total Part Build Rating . | . . . Parts Repaired . | . . . Time . | . . . Parts Recycled . | . . . Recycled Matter . | . . . Retrieved Matter . | . . . Retrieved Components . | . . . Parts Scanalyzed . | . . . Part Schematics Acquired . | . . . Parts Damaged . | . . . Bothacking | -11 -10 -10 ------------ Run | Yrd Mat Min Used RIF Installer . | . . . Robots Hacked . | . . . Non-combat . | . . . Combat . | . . . Robot Hacks Applied . | . . . Relay Couplers Released . | . . . Fabnet Peak Effective % . | . . . Robots Rewired . | . . . Allies Hacked . | . . . Hacks Repelled . | . . . Allies | -11 -10 -10 -------- Run | Yrd Mat Min Total Allies . | . . . Largest Group . | . . . Highest-Rated Group . | . . . Highest-Rated Ally . | . . . Total Orders . | . . . Ally Attacks . | . . . Total Damage . | . . . Kills . | . . . Allies Corrupted . | . . . Allies Melted . | . . . Intel | -11 -10 -10 ------- Run | Yrd Mat Min Robot Analysis Total 1 | . 1 . Derelict Logs Recovered . | . . . Drone Launches . | . . . Drone Recoveries . | . . . Exploration | -11 -10 -10 ------------- Run | Yrd Mat Min Turns Passed 834 | 125 684 25 Spaces Moved 607 | 73 514 20 Core 16 | 1 15 . Treads . | . . . Legs . | . . . Wheels 591 | 72 499 20 Hover . | . . . Flight . | . . . Fastest Speed 50 | 50 80 80 Average Speed 82 | 83 82 80 Slowest Speed 150 | 100 150 80 Overloaded Moves . | . . . Propulsion Burnouts . | . . . Robots Hopped . | . . . Cave-ins Triggered . | . . . Exploration Rate (%) 30 | 5 71 16 Regions Visited 2 Branch Regions 1 Pre-discovered Areas . | . . . Known Exits Taken 1 | . 1 . Unknown Exits Taken 1 | 1 . . Scrap Searched . | . . . Spaces Dug . | . . . Terrain Destroyed 62 | 5 37 20 Melee . | . . . Projectile . | . . . AOE 62 | 5 37 20 Terrain Rammed . | . . . Walls Destroyed . | . . . Machines Disabled . | . . . Actions | -11 -10 -10 --------- Run | Yrd Mat Min Total 766 | 102 640 24 Wait 21 | . 21 . Move 605 | 72 513 20 Hop . | . . . Pick Up 11 | 4 7 . Fast Attach 11 | 6 5 . Attach 5 | . 4 1 Detach 2 | . 2 . Swap 9 | 4 5 . Drop 6 | 1 5 . Fire 96 | 15 78 3 Melee . | . . . Ram . | . . . Kick . | . . . Crush . | . . . Escape Stasis . | . . . Rewire . | . . . Trap . | . . . Miscellaneous . | . . . Route ------- -11/Scrapyard -10/Materials (discovered 3 exits: [*Mat] / *Min x2) -10/Mines History --------- Turn | Location | Event 29 | -11/Scrapyard | Discovered new exit (range 16) 126 | -11/Scrapyard | Entered Materials 257 | -10/Materials | Discovered new exit (range 14) 311 | -10/Materials | Build established: Mutant 311 | -10/Materials | Central database locked down 338 | -10/Materials | Identified exit to Mines 448 | -10/Materials | Core integrity fell below 50% 488 | -10/Materials | Core integrity fell below 20% 514 | -10/Materials | Lost 6 parts (1p2n3w) 758 | -10/Materials | Discovered new exit (range 7) 810 | -10/Materials | Entered Mines 835 | -10/Mines | Destroyed by Y-45 Defender with Beam Rifle Last Messages --------------- 00691_ T-07 Excavator destroyed. 00705_ Acquired Imp. Terrain Scanner. 00719_ Destroyed Lgt. Ion Engine. 00719_ O-16 Technician destroyed. 00722_ Terminal disabled. 00725_ G-34 Mercenary destroyed. 00731_ Acquired 24 matter. 00758_ EXIT=FOUND 00784_ U-05 Engineer lays Concrete. 00794_ R-06 Scavenger collects Lgt. Ion Engine. 00795_ U-05 Engineer builds a Wall. 00799_ U-05 Engineer lays Concrete. LOCATION=MINES GOAL=ESCAPE Something is scanning the area. 00827_ Wheel destroyed. 00827_ Destroyed Wheel. 00829_ Med. Laser destroyed. 00830_ Y-45 Defender destroyed. 00830_ Machine disabled. Map ----- +----------------------------------------------------+ | | | | | | | | | | | ???????????????????????????????? | | ???????????????????????????????? | | ?????????????########??????????? | | ????????????## ##?????????? | | ????????????# #?????????? | | ????????????# #?????????? | | ???????####?## #?????????? | | ??????## ######## #?????????? | | ??#???# ##???## ########### | | ?????## ##??## | | ????## #?## | | ???## ### ########## | | ???# ## #????????? | | ???# ##????????? | | ??#?# ##?????????? | | #??### ###?????????? | | #### # #???????????? | | ! # #?#?????????? | | ! #?#?????????? | | Y* #???????????? | | %== @ #??????????? | | [ ## #?????????? | | # ! # ## #????????? | | ?## #### #### ???????? | | ??#?????## ###??? ?????? | | ?????????####????? ?????? | | ?????????????????? ?????? | | ?????????????????? ?????? | | ?????????????????? ??????? | | ???????????????????#? ?????????? | | ??????????#????????????????????? | | ?????????????? ????????????????? | | ???????????????????????????????? | | ???????????????????????????????? | | ???????????????????????????????? | | ???????????????????????????????? | | ???????????????????????????????? | | ???????????????????????????????? | | ???????????????????????????????? | | ???????????????????????????????? | | ???????????????????????????????? | | ???????????????????????????????? | | ???????????????????????????????? | | ???????????????????????????????? | | ???????????????????????????????? | +----------------------------------------------------+ Best States ------------- Heat Dissipation 35 Energy Generation 10 Energy Capacity 250 Matter Stores 300 Matter Capacity 300 Sight Range 16 Terrain Scan Range 16 Terrain Scan Density 10 Propulsion Shielding 33 Evasion (%) 44 Item Schematics ----------------- None Robot Schematics ------------------ None Fabricated ------------ Nothing Alien Tech Used ----------------- None Achievements -------------- None Challenges ------------ None Game ------ Seed CouplerCloakingCompactor Manual? 0 Play Time 00:08:58 Cumulative 421.9 hours Start 2024.06.23 @ 07:14:11 End 2024.06.23 @ 07:22:51 Sessions 1 Manual Loads 0 Difficulty Rogue Special Mode None Game No. 151 Rogue 151 Adventurer 0 Explorer 0 Win Type - Total 3 Types 0/0/2/1/0/0/0/0/0 Lore% 71 Gallery% 79 Achievement% 63 Wizard Run 0 Options --------- Layout 0 ASCII 0 Keyboard 1 Movement Arrows Keybinds 0 Fullscreen 1 Font 12/Proggy Map View 83x54 Zoom Use 0% Tactical HUD 1 Map Filters NONE Filters NONE Steam 0 RUN: fe3da0f2-95d9-4db1-ac3e-64f88f7c6eca